fUST/lending_fUST_20250816
["ID","MTS","AMOUNT","RATE_DAILY","PERIOD"]
[379625392,1755349839192,-2117.11792945,0.00021424,2]
[379625393,1755349839203,-215.68093138,0.00021441,2]
[379625394,1755349839419,-462.1417622,0.00021441,2]
[379625395,1755349839430,-528.38334358,0.00021441,2]
[379625396,1755349839441,-160.0,0.00021448,2]
[379625397,1755349839451,-160.0,0.00021448,2]
[379625398,1755349839461,-160.0,0.00021448,2]
[379625399,1755349839471,-160.0,0.00021448,2]
[379625400,1755349839480,-160.0,0.00021448,2]
[379625401,1755349839489,-232.11368524,0.00021448,2]
[379625402,1755349839499,-160.0,0.00021448,2]
[379625403,1755349839508,-160.0,0.00021452,2]
[379625404,1755349839516,-2567.94300906,0.00021496,2]
[379625405,1755349839526,-151.0,0.000215,4]
[379625406,1755349839535,-206.0,0.0002156,2]
[379625407,1755349839544,-206.0,0.00021607,2]
[379625408,1755349839554,-151.0,0.000217,3]
[379625409,1755349839563,-501.83633287,0.00021768,2]
[379625410,1755349839573,-1500.0,0.00021768,2]
[379625411,1755349839582,-1005.2357073,0.00021768,2]
[379625412,1755349839592,-709.00036498,0.00021794,2]
[379625413,1755349839601,-1160.28410487,0.00021794,2]
[379625414,1755349839611,-151.0,0.000218,3]
[379625415,1755349839620,-151.0,0.000218,3]
[379625416,1755349839630,-500.0,0.00021873,2]
[379625417,1755349839639,-500.50306476,0.00021873,2]
[379625418,1755349839649,-500.0,0.00021873,2]
[379625419,1755349839658,-500.0,0.00021873,2]
[379625420,1755349839667,-500.0,0.00021873,2]
[379625421,1755349839677,-500.0,0.00021873,2]
[379625422,1755349839687,-500.0,0.00021873,2]
[379625423,1755349839696,-501.53381623,0.00021873,2]
[379625424,1755349839705,-500.0,0.00021873,2]
[379625425,1755349839715,-500.0,0.00021873,2]
[379625426,1755349839726,-500.0,0.00021873,2]
[379625427,1755349839735,-500.0,0.00021873,2]
[379625428,1755349839744,-500.0,0.00021873,2]
[379625429,1755349839754,-341.19863685,0.00021873,2]
[379625430,1755349839763,-157.59078139,0.00021873,2]
[379625431,1755349839773,-500.0,0.00021873,2]
[379625432,1755349839782,-500.0,0.00021873,2]
[379625433,1755349839792,-500.0,0.00021873,2]
[379625434,1755349839801,-500.0,0.00021873,2]
[379625435,1755349839811,-181.22071922,0.00021873,2]
[379625436,1755349839821,-500.0,0.00021873,2]
[379625437,1755349839830,-500.0,0.00021873,2]
[379625438,1755349839840,-500.0,0.00021873,2]
[379625439,1755349839850,-500.0,0.00021873,2]
[379625440,1755349839859,-500.0,0.00021873,2]
[379625441,1755349839868,-258.61786805,0.00021873,2]
[379625442,1755349839878,-500.0,0.00021873,2]
[379625443,1755349839888,-500.0,0.00021873,2]
[379625444,1755349839898,-500.0,0.00021873,2]
[379625445,1755349839908,-160.59508238,0.00021873,2]
[379625446,1755349839918,-160.18977761,0.00021873,2]
[379625447,1755349839927,-248.69501119,0.00021873,2]
[379625448,1755349839936,-160.17413587,0.00021873,2]
[379625449,1755349839946,-340.78895571,0.00021873,2]
[379625450,1755349839955,-157.16732525,0.00021873,2]
[379625451,1755349839964,-258.63015784,0.00021873,2]
[379625452,1755349839974,-258.59425367,0.00021873,2]
[379625453,1755349839983,-158.17436971,0.00021873,2]
[379625454,1755349839992,-160.19486636,0.00021873,2]
[379625455,1755349840002,-415.28397868,0.00021873,2]
[379625456,1755349840012,-258.62627597,0.00021873,2]
[379625457,1755349840021,-158.58749088,0.00021873,2]
[379625458,1755349840030,-400.45272023,0.00021873,2]
[379625459,1755349840039,-159.58559977,0.00021873,2]
[379625462,1755349840049,-500.0,0.00021873,2]
[379625463,1755349840059,-158.5737766,0.00021873,2]
[379625464,1755349840068,-160.19341932,0.00021873,2]
[379625465,1755349840077,-158.59094384,0.00021873,2]
[379625466,1755349840086,-340.37478189,0.00021873,2]
[379625467,1755349840096,-500.0,0.00021873,2]
[379625468,1755349840105,-500.0,0.00021873,2]
[379625471,1755349840115,-500.0,0.00021873,2]
[379625473,1755349840125,-160.59564343,0.00021873,2]
[379625474,1755349840134,-261.37303828,0.00021873,2]
[379625475,1755349840145,-158.59895642,0.00021873,2]
[379625476,1755349840154,-500.0,0.00021873,2]
[379625477,1755349840165,-500.0,0.00021873,2]
[379625478,1755349840174,-500.0,0.00021873,2]
[379625479,1755349840184,-500.0,0.00021873,2]
[379625480,1755349840194,-500.0,0.00021873,2]
[379625481,1755349840204,-500.0,0.00021873,2]
[379625482,1755349840214,-500.0,0.00021873,2]
[379625483,1755349840224,-500.0,0.00021873,2]
[379625484,1755349840233,-504.38691554,0.00021873,2]
[379625485,1755349840243,-217.00503673,0.00021873,2]
[379625486,1755349840252,-173.68600532,0.00021873,2]
[379625487,1755349840262,-501.49764947,0.00021873,2]
[379625488,1755349840271,-500.0,0.00021873,2]
[379625489,1755349840281,-525.57279936,0.00021873,2]
[379625490,1755349840290,-500.0,0.00021873,2]
[379625491,1755349840301,-445.47381245,0.00021873,2]
[379625492,1755349840313,-500.0,0.00021873,2]
[379625493,1755349840322,-500.0,0.00021873,2]
[379625494,1755349840331,-632.78703065,0.00021873,2]
[379625495,1755349840341,-500.0,0.00021873,2]
[379625496,1755349840351,-500.0,0.00021873,2]
[379625497,1755349840360,-500.0,0.00021873,2]
[379625498,1755349840369,-500.0,0.00021873,2]
[379625499,1755349840379,-500.0,0.00021873,2]
[379625500,1755349840388,-500.0,0.00021873,2]
[379625501,1755349840398,-500.0,0.00021873,2]
[379625502,1755349840408,-500.0,0.00021873,2]
[379625503,1755349840419,-500.0,0.00021873,2]
[379625504,1755349840428,-500.0,0.00021873,2]
[379625505,1755349840438,-500.0,0.00021873,2]
[379625507,1755349840447,-347780.64541809,0.000219,2]
[379625510,1755349840468,-300.80260306,0.00021916,2]
[379625512,1755349840489,-95513.80738187,0.00021917,2]
[379625513,1755349840500,-460.0,0.00021917,3]
[379625514,1755349840521,-480.0,0.00021917,3]
[379625515,1755349840542,-480.0,0.00021917,3]
[379625516,1755349840553,-461.97363052,0.00021917,3]
[379625517,1755349840563,-461.86620049,0.00021917,3]
[379625518,1755349840572,-460.0,0.00021917,3]
[379625519,1755349840581,-480.0,0.00021917,3]
[379625520,1755349840591,-480.0,0.00021917,3]
[379625521,1755349840601,-480.0,0.00021917,3]
[379625522,1755349840610,-480.0,0.00021917,3]
[379625523,1755349840620,-460.0,0.00021917,3]
[379625524,1755349840629,-480.0,0.00021917,3]
[379625525,1755349840639,-460.0,0.00021917,3]
[379625526,1755349840648,-480.0,0.00021917,3]
[379625527,1755349840658,-480.0,0.00021917,3]
[379625528,1755349840667,-460.0,0.00021917,3]
[379625529,1755349840677,-436.15157528,0.00021917,3]
[379625530,1755349840686,-480.0,0.00021917,3]
[379625531,1755349840695,-480.0,0.00021917,3]
[379625532,1755349840704,-480.0,0.00021917,3]
[379625533,1755349840714,-480.0,0.00021917,3]
[379625534,1755349840724,-480.0,0.00021917,3]
[379625535,1755349840733,-460.0,0.00021917,3]
[379625537,1755349840872,-480.0,0.00021917,3]
[379625538,1755349840883,-480.0,0.00021917,3]
[379625539,1755349840893,-480.0,0.00021917,3]
[379625540,1755349840903,-460.0,0.00021917,3]
[379625541,1755349840912,-480.0,0.00021917,3]
[379625542,1755349840922,-460.0,0.00021917,3]
[379625543,1755349840931,-480.0,0.00021917,3]
[379625544,1755349840940,-460.0,0.00021917,3]
[379625545,1755349840949,-914.09,0.00021917,3]
[379625546,1755349840959,-480.0,0.00021917,3]
[379625547,1755349840968,-465.06985406,0.00021917,3]
[379625548,1755349840978,-480.0,0.00021917,3]
[379625549,1755349840987,-460.0,0.00021917,3]
[379625550,1755349840997,-460.0,0.00021917,3]
[379625551,1755349841006,-480.0,0.00021917,3]
[379625552,1755349841016,-500.0,0.00021917,3]
[379625553,1755349841025,-500.0,0.00021917,3]
[379625554,1755349841034,-500.0,0.00021917,3]
[379625555,1755349841043,-500.0,0.00021917,3]
[379625556,1755349841052,-500.0,0.00021917,3]
[379625557,1755349841061,-500.0,0.00021917,3]
[379625558,1755349841071,-500.0,0.00021917,3]
[379625559,1755349841081,-500.0,0.00021917,3]
[379625560,1755349841090,-500.0,0.00021917,3]
[379625561,1755349841099,-500.0,0.00021917,3]
[379625562,1755349841109,-460.44707013,0.00021917,3]
[379625563,1755349841119,-460.0,0.00021917,3]
[379625564,1755349841129,-480.0,0.00021917,3]
[379625565,1755349841138,-221.78482819,0.00021917,3]
[379625566,1755349841147,-480.0,0.00021917,3]
[379625567,1755349841157,-480.0,0.00021917,3]
[379625568,1755349841167,-480.0,0.00021917,3]
[379625569,1755349841177,-480.0,0.00021917,3]
[379625570,1755349841186,-625.3144719,0.00021917,3]
[379625571,1755349841196,-480.0,0.00021917,3]
[379625572,1755349841206,-158.15447284,0.00021917,3]
[379625573,1755349841215,-480.0,0.00021917,3]
[379625574,1755349841224,-481.48,0.00021917,3]
[379625575,1755349841234,-480.0,0.00021917,3]
[379625576,1755349841243,-727.67,0.00021917,3]
[379625577,1755349841252,-480.0,0.00021917,3]
[379625578,1755349841262,-480.0,0.00021917,3]
[379625579,1755349841271,-480.0,0.00021917,3]
[379625580,1755349841281,-480.0,0.00021917,3]
[379625581,1755349841290,-534.39828271,0.00021917,3]
[379625582,1755349841300,-480.0,0.00021917,3]
[379625583,1755349841312,-828.32,0.00021917,3]
[379625584,1755349841322,-337.43573212,0.00021917,3]
[379625585,1755349841331,-480.0,0.00021917,3]
[379625587,1755349841342,-480.0,0.00021917,3]
[379625589,1755349841351,-676.16,0.00021917,3]
[379625591,1755349841360,-525.0,0.00021917,3]
[379625593,1755349841369,-480.0,0.00021917,3]
[379625594,1755349841380,-480.0,0.00021917,3]
[379625595,1755349841389,-480.0,0.00021917,3]
[379625596,1755349841398,-695.38,0.00021917,3]
[379625597,1755349841407,-461.45396177,0.00021917,3]
[379625598,1755349841417,-480.0,0.00021917,3]
[379625599,1755349841427,-460.0,0.00021917,3]
[379625600,1755349841437,-562.29578521,0.00021917,3]
[379625601,1755349841446,-480.0,0.00021917,3]
[379625602,1755349841457,-480.0,0.00021917,3]
[379625603,1755349841466,-480.0,0.00021917,3]
[379625604,1755349841476,-526.53,0.00021917,3]
[379625605,1755349841487,-480.0,0.00021917,3]
[379625606,1755349841497,-480.0,0.00021917,3]
[379625607,1755349841507,-818.86,0.00021917,3]
[379625608,1755349841516,-480.0,0.00021917,3]
[379625609,1755349841527,-480.0,0.00021917,3]
[379625610,1755349841537,-460.0,0.00021917,3]
[379625611,1755349841548,-460.0,0.00021917,3]
[379625612,1755349841559,-460.0,0.00021917,3]
[379625613,1755349841569,-480.0,0.00021917,3]
[379625614,1755349841579,-480.0,0.00021917,3]
[379625615,1755349841591,-480.0,0.00021917,3]
[379625616,1755349841602,-480.0,0.00021917,3]
[379625617,1755349841612,-480.0,0.00021917,3]
[379625618,1755349841621,-480.0,0.00021917,3]
[379625619,1755349841631,-460.0,0.00021917,3]
[379625620,1755349841640,-460.0,0.00021917,3]
[379625621,1755349841649,-480.0,0.00021917,3]
[379625622,1755349841658,-480.0,0.00021917,3]
[379625623,1755349841668,-526.48,0.00021917,3]
[379625624,1755349841677,-480.0,0.00021917,3]
[379625625,1755349841686,-480.0,0.00021917,3]
[379625626,1755349841696,-480.0,0.00021917,3]
[379625627,1755349841705,-2614.19,0.00021917,3]
[379625628,1755349841714,-480.0,0.00021917,3]
[379625629,1755349841723,-480.0,0.00021917,3]
[379625630,1755349841733,-351.47731221,0.00021917,3]
[379625631,1755349841743,-500.0,0.00021917,3]
[379625632,1755349841752,-519.65632826,0.00021917,3]
[379625633,1755349841762,-480.0,0.00021917,3]
[379625634,1755349841771,-460.0,0.00021917,3]
[379625635,1755349841780,-480.0,0.00021917,3]
[379625636,1755349841791,-480.0,0.00021917,3]
[379625637,1755349841801,-480.0,0.00021917,3]
[379625638,1755349841812,-480.0,0.00021917,3]
[379625639,1755349841823,-365.32276259,0.00021917,3]
[379625640,1755349841833,-480.0,0.00021917,3]
[379625641,1755349841843,-480.0,0.00021917,3]
[379625643,1755349841855,-428.30336908,0.00021917,3]
[379625644,1755349841864,-480.0,0.00021917,3]
[379625645,1755349841873,-460.0,0.00021917,3]
[379625646,1755349841882,-347.66013676,0.00021917,3]
[379625647,1755349841891,-480.0,0.00021917,3]
[379625648,1755349841901,-480.0,0.00021917,3]
[379625649,1755349841910,-480.0,0.00021917,3]
[379625650,1755349841919,-480.0,0.00021917,3]
[379625651,1755349841928,-480.0,0.00021917,3]
[379625652,1755349841938,-480.0,0.00021917,3]
[379625653,1755349841947,-460.0,0.00021917,3]
[379625654,1755349841960,-749.15,0.00021917,3]
[379625655,1755349841969,-520.99,0.00021917,3]
[379625656,1755349841979,-460.0,0.00021917,3]
[379625657,1755349841988,-480.0,0.00021917,3]
[379625658,1755349841997,-480.0,0.00021917,3]
[379625659,1755349842006,-264.96501802,0.00021917,3]
[379625660,1755349842015,-460.0,0.00021917,3]
[379625661,1755349842024,-480.0,0.00021917,3]
[379625662,1755349842034,-548.90583723,0.00021917,3]
[379625663,1755349842043,-831.31,0.00021917,3]
[379625664,1755349842053,-480.0,0.00021917,3]
[379625665,1755349842062,-177.05823901,0.00021917,3]
[379625666,1755349842071,-1018.35,0.00021917,3]
[379625667,1755349842080,-1018.35,0.00021917,3]
[379625668,1755349842089,-460.59846875,0.00021917,3]
[379625669,1755349842099,-1018.35,0.00021917,3]
[379625670,1755349842108,-460.0,0.00021917,3]
[379625671,1755349842118,-1018.35,0.00021917,3]
[379625672,1755349842127,-467.46366629,0.00021917,3]
[379625673,1755349842137,-1018.35,0.00021917,3]
[379625674,1755349842145,-480.0,0.00021917,3]
[379625675,1755349842155,-1018.35,0.00021917,3]
[379625676,1755349842164,-1018.35,0.00021917,3]
[379625677,1755349842174,-1018.35,0.00021917,3]
[379625678,1755349842183,-1018.35,0.00021917,3]
[379625679,1755349842192,-1018.35,0.00021917,3]
[379625680,1755349842201,-1018.35,0.00021917,3]
[379625681,1755349842210,-1018.35,0.00021917,3]
[379625682,1755349842219,-1018.35,0.00021917,3]
[379625683,1755349842229,-468.21008992,0.00021917,3]
[379625684,1755349842239,-1018.35,0.00021917,3]
[379625685,1755349842248,-1018.35,0.00021917,3]
[379625686,1755349842257,-480.0,0.00021917,3]
[379625687,1755349842269,-1018.35,0.00021917,3]
[379625688,1755349842279,-480.0,0.00021917,3]
[379625689,1755349842288,-1018.35,0.00021917,3]
[379625690,1755349842301,-1018.35,0.00021917,3]
[379625691,1755349842315,-480.0,0.00021917,3]
[379625692,1755349842324,-1018.35,0.00021917,3]
[379625693,1755349842334,-1018.35,0.00021917,3]
[379625694,1755349842343,-1018.35,0.00021917,3]
[379625695,1755349842353,-1018.35,0.00021917,3]
[379625696,1755349842362,-461.38223423,0.00021917,3]
[379625697,1755349842372,-1018.35,0.00021917,3]
[379625698,1755349842381,-480.0,0.00021917,3]
[379625699,1755349842391,-1018.40306053,0.00021917,3]
[379625700,1755349842401,-480.0,0.00021917,3]
[379625701,1755349842410,-480.0,0.00021917,3]
[379625702,1755349842420,-460.0,0.00021917,3]
[379625703,1755349842429,-480.0,0.00021917,3]
[379625704,1755349842439,-463.97386721,0.00021917,3]
[379625705,1755349842448,-460.0,0.00021917,3]
[379625706,1755349842457,-480.0,0.00021917,3]
[379625707,1755349842466,-388.54820801,0.00021917,3]
[379625708,1755349842476,-480.0,0.00021917,3]
[379625709,1755349842485,-480.0,0.00021917,3]
[379625710,1755349842495,-240.33690052,0.00021917,3]
[379625711,1755349842505,-480.0,0.00021917,3]
[379625712,1755349842514,-480.0,0.00021917,3]
[379625713,1755349842522,-307.86371295,0.00021917,3]
[379625714,1755349842531,-460.0,0.00021917,3]
[379625715,1755349842540,-461.63524623,0.00021917,3]
[379625716,1755349842549,-480.0,0.00021917,3]
[379625717,1755349842558,-460.0,0.00021917,3]
[379625718,1755349842566,-480.0,0.00021917,3]
[379625719,1755349842574,-480.0,0.00021917,3]
[379625720,1755349842582,-582.74,0.00021917,3]
[379625721,1755349842591,-480.0,0.00021917,3]
[379625722,1755349842600,-480.0,0.00021917,3]
[379625723,1755349842609,-480.0,0.00021917,3]
[379625724,1755349842618,-480.0,0.00021917,3]
[379625725,1755349842627,-480.0,0.00021917,3]
[379625726,1755349842636,-489.55,0.00021917,3]
[379625727,1755349842645,-480.0,0.00021917,3]
[379625728,1755349842655,-480.0,0.00021917,3]
[379625729,1755349842664,-460.83249565,0.00021917,3]
[379625730,1755349842673,-480.0,0.00021917,3]
[379625731,1755349842682,-559.12752813,0.00021917,3]
[379625732,1755349842691,-480.0,0.00021917,3]
[379625733,1755349842701,-460.51896454,0.00021917,3]
[379625734,1755349842710,-480.0,0.00021917,3]
[379625735,1755349842720,-480.0,0.00021917,3]
[379625736,1755349842730,-480.0,0.00021917,3]
[379625737,1755349842739,-480.0,0.00021917,3]
[379625738,1755349842748,-1531.67,0.00021917,3]
[379625739,1755349842757,-480.0,0.00021917,3]
[379625740,1755349842766,-1954.3,0.00021917,3]
[379625741,1755349842775,-460.0,0.00021917,3]
[379625742,1755349842784,-480.0,0.00021917,3]
[379625743,1755349842793,-480.0,0.00021917,3]
[379625744,1755349842803,-480.0,0.00021917,3]
[379625745,1755349842812,-515.89,0.00021917,3]
[379625746,1755349842821,-480.0,0.00021917,3]
[379625747,1755349842830,-480.0,0.00021917,3]
[379625748,1755349842839,-480.0,0.00021917,3]
[379625749,1755349842849,-480.0,0.00021917,3]
[379625750,1755349842860,-480.0,0.00021917,3]
[379625751,1755349842870,-578.77,0.00021917,3]
[379625752,1755349842879,-460.0,0.00021917,3]
[379625753,1755349842888,-480.0,0.00021917,3]
[379625754,1755349842897,-480.0,0.00021917,3]
[379625755,1755349842907,-704.72,0.00021917,3]
[379625756,1755349842916,-480.0,0.00021917,3]
[379625757,1755349842925,-480.0,0.00021917,3]
[379625758,1755349842934,-593.17,0.00021917,3]
[379625759,1755349842943,-528.15,0.00021917,3]
[379625760,1755349842952,-480.0,0.00021917,3]
[379625763,1755349842961,-480.0,0.00021917,3]
[379625767,1755349842970,-480.0,0.00021917,3]
[379625769,1755349842979,-480.0,0.00021917,3]
[379625773,1755349842989,-480.0,0.00021917,3]
[379625777,1755349842997,-480.0,0.00021917,3]
[379625779,1755349843005,-480.0,0.00021917,3]
[379625781,1755349843014,-460.0,0.00021917,3]
[379625785,1755349843022,-480.0,0.00021917,3]
[379625788,1755349843032,-485.15588393,0.00021917,3]
[379625791,1755349843042,-462.21769733,0.00021917,3]
[379625796,1755349843051,-480.0,0.00021917,3]
[379625798,1755349843059,-480.0,0.00021917,3]
[379625802,1755349843068,-460.0,0.00021917,3]
[379625806,1755349843077,-460.0,0.00021917,3]
[379625809,1755349843087,-480.0,0.00021917,3]
[379625811,1755349843097,-460.0,0.00021917,3]
[379625813,1755349843106,-480.0,0.00021917,3]
[379625818,1755349843116,-480.0,0.00021917,3]
[379625820,1755349843125,-480.0,0.00021917,3]
[379625821,1755349843135,-480.0,0.00021917,3]
[379625823,1755349843144,-480.0,0.00021917,3]
[379625826,1755349843153,-480.0,0.00021917,3]
[379625828,1755349843161,-480.0,0.00021917,3]
[379625829,1755349843171,-480.0,0.00021917,3]
[379625830,1755349843180,-480.0,0.00021917,3]
[379625831,1755349843189,-480.0,0.00021917,3]
[379625832,1755349843198,-366.10299693,0.00021917,3]
[379625833,1755349843207,-480.0,0.00021917,3]
[379625834,1755349843216,-480.0,0.00021917,3]
[379625835,1755349843227,-491.19,0.00021917,3]
[379625836,1755349843236,-460.0,0.00021917,3]
[379625837,1755349843245,-707.74,0.00021917,3]
[379625839,1755349843255,-480.0,0.00021917,3]
[379625841,1755349843264,-480.0,0.00021917,3]
[379625842,1755349843273,-475.78870885,0.00021917,3]
[379625844,1755349843283,-1691.17,0.00021917,3]
[379625845,1755349843292,-480.0,0.00021917,3]
[379625846,1755349843302,-460.0,0.00021917,3]
[379625847,1755349843314,-480.0,0.00021917,3]
[379625848,1755349843323,-2627.16,0.00021917,3]
[379625849,1755349843332,-480.0,0.00021917,3]
[379625850,1755349843343,-343.26239707,0.00021917,3]
[379625851,1755349843353,-480.0,0.00021917,3]
[379625852,1755349843362,-1336.6,0.00021917,3]
[379625853,1755349843372,-480.0,0.00021917,3]
[379625854,1755349843382,-477.78904969,0.00021917,3]
[379625855,1755349843392,-480.0,0.00021917,3]
[379625856,1755349843402,-480.0,0.00021917,3]
[379625857,1755349843518,-480.0,0.00021917,3]
[379625858,1755349843542,-480.0,0.00021917,3]
[379625859,1755349843550,-480.0,0.00021917,3]
[379625861,1755349843559,-496.92,0.00021917,3]
[379625862,1755349843567,-480.0,0.00021917,3]
[379625864,1755349843574,-319.02347275,0.00021917,3]
[379625866,1755349843581,-480.0,0.00021917,3]
[379625867,1755349843587,-480.0,0.00021917,3]
[379625868,1755349843594,-380.0,0.00021917,3]
[379625869,1755349843602,-613.10423497,0.00021917,3]
[379625870,1755349843610,-581.71,0.00021917,3]
[379625871,1755349843619,-480.0,0.00021917,3]
[379625873,1755349843628,-480.0,0.00021917,3]
[379625875,1755349843637,-480.0,0.00021917,3]
[379625876,1755349843647,-500.0,0.00021917,3]
[379625877,1755349843657,-500.0,0.00021917,3]
[379625879,1755349843666,-500.0,0.00021917,3]
[379625881,1755349843675,-500.0,0.00021917,3]
[379625883,1755349843684,-500.0,0.00021917,3]
[379625884,1755349843693,-500.0,0.00021917,3]
[379625885,1755349843702,-500.0,0.00021917,3]
[379625886,1755349843711,-500.0,0.00021917,3]
[379625887,1755349843720,-500.0,0.00021917,3]
[379625888,1755349843732,-500.0,0.00021917,3]
[379625889,1755349843741,-500.0,0.00021917,3]
[379625890,1755349843750,-500.0,0.00021917,3]
[379625891,1755349843760,-500.0,0.00021917,3]
[379625892,1755349843770,-500.0,0.00021917,3]
[379625894,1755349843779,-500.0,0.00021917,3]
[379625895,1755349843788,-500.0,0.00021917,3]
[379625897,1755349843797,-161.55,0.00021917,3]
[379625900,1755349843807,-360.0,0.00021917,3]
[379625903,1755349843816,-480.0,0.00021917,3]
[379625906,1755349843825,-480.0,0.00021917,3]
[379625908,1755349843834,-532.58,0.00021917,2]
[379625910,1755349843843,-480.0,0.00021917,3]
[379625912,1755349843852,-480.0,0.00021917,3]
[379625914,1755349843861,-460.0,0.00021917,3]
[379625916,1755349843870,-719.31,0.00021917,3]
[379625918,1755349843879,-480.0,0.00021917,3]
[379625920,1755349843888,-464.37442456,0.00021917,3]
[379625921,1755349843897,-480.0,0.00021917,3]
[379625922,1755349843907,-480.0,0.00021917,3]
[379625923,1755349843915,-480.0,0.00021917,3]
[379625924,1755349843924,-480.0,0.00021917,3]
[379625925,1755349843934,-480.0,0.00021917,3]
[379625926,1755349843943,-460.0,0.00021917,3]
[379625927,1755349843952,-1068.75,0.00021917,3]
[379625928,1755349843961,-480.0,0.00021917,3]
[379625929,1755349843971,-5327.74,0.00021917,3]
[379625930,1755349843981,-480.0,0.00021917,3]
[379625931,1755349843991,-480.0,0.00021917,3]
[379625932,1755349844000,-360.8348439,0.00021917,3]
[379625933,1755349844009,-460.0,0.00021917,3]
[379625934,1755349844019,-461.20669144,0.00021917,3]
[379625935,1755349844028,-460.54668917,0.00021917,3]
[379625936,1755349844037,-480.0,0.00021917,3]
[379625937,1755349844046,-628.5514428,0.00021917,3]
[379625938,1755349844055,-460.52798192,0.00021917,3]
[379625939,1755349844065,-461.10288567,0.00021917,3]
[379625940,1755349844074,-277.04727961,0.00021917,3]
[379625941,1755349844084,-480.0,0.00021917,3]
[379625942,1755349844093,-460.00000001,0.00021917,3]
[379625943,1755349844102,-480.0,0.00021917,3]
[379625944,1755349844111,-754.16,0.00021917,3]
[379625945,1755349844121,-480.0,0.00021917,3]
[379625946,1755349844131,-480.0,0.00021917,3]
[379625947,1755349844140,-275.30961422,0.00021917,3]
[379625948,1755349844150,-480.0,0.00021917,3]
[379625949,1755349844159,-480.0,0.00021917,3]
[379625950,1755349844170,-461.20105334,0.00021917,3]
[379625951,1755349844191,-460.0,0.00021917,3]
[379625952,1755349844203,-480.0,0.00021917,3]
[379625953,1755349844213,-480.0,0.00021917,3]
[379625954,1755349844234,-480.0,0.00021917,3]
[379625955,1755349844246,-480.0,0.00021917,3]
[379625956,1755349844255,-461.70575592,0.00021917,3]
[379625957,1755349844265,-480.0,0.00021917,3]
[379625958,1755349844274,-480.0,0.00021917,3]
[379625959,1755349844284,-460.72316613,0.00021917,3]
[379625960,1755349844293,-480.0,0.00021917,3]
[379625961,1755349844306,-480.0,0.00021917,3]
[379625962,1755349844315,-480.0,0.00021917,3]
[379625963,1755349844325,-1811.08,0.00021917,3]
[379625964,1755349844334,-460.0,0.00021917,3]
[379625965,1755349844344,-1524.43,0.00021917,3]
[379625966,1755349844353,-460.0,0.00021917,3]
[379625967,1755349844363,-460.0,0.00021917,3]
[379625968,1755349844372,-1319.02,0.00021917,3]
[379625969,1755349844383,-2629.13,0.00021917,3]
[379625970,1755349844392,-480.0,0.00021917,3]
[379625971,1755349844402,-462.66047476,0.00021917,3]
[379625972,1755349844412,-460.0,0.00021917,3]
[379625973,1755349844423,-480.0,0.00021917,3]
[379625974,1755349844433,-460.49739306,0.00021917,3]
[379625975,1755349844442,-462.43664672,0.00021917,3]
[379625976,1755349844452,-460.0,0.00021917,3]
[379625977,1755349844462,-959.29,0.00021917,3]